bitfinex/quotes_SOLUSD_20241218
["timestamp","ask_amount","ask_price","bid_price","bid_amount"]
[1734552281636,2.3752,210.5,210.42,37.0447]
[1734552281838,24.02496459,210.49,210.42,37.0447]
[1734552282033,24.02496459,210.49,210.42,32.7366]
[1734552282713,2.3752,210.5,210.42,32.7366]
[1734552282918,0.24808059,210.53,210.42,32.7366]
[1734552283149,4.7466,210.68,210.42,32.7366]
[1734552283352,0.24808059,210.55,210.42,32.7366]
[1734552283726,0.24808059,210.62,210.44,36.23755628]
[1734552283920,0.24808059,210.66,210.48,36.23755628]
[1734552284122,0.24808059,210.66,210.49,0.71224166]
[1734552284331,0.24808059,210.66,210.42,32.7366]
[1734552284951,0.24808059,210.66,210.43,2.20969937]
[1734552285122,20.0,210.64,210.43,2.20969937]
[1734552285323,0.24808059,210.63,210.43,2.20969937]
[1734552285642,0.24808059,210.63,210.42,33.4490338]
[1734552285840,0.24808059,210.63,210.42,32.7366]
[1734552286144,0.24808059,210.63,210.43,0.71251538]
[1734552286355,0.24808059,210.66,210.44,36.23755628]
[1734552286522,7.36838059,210.66,210.46,36.23755628]
[1734552286732,7.36838059,210.66,210.47,0.7122964]
[1734552286931,2.3734,210.66,210.5,36.23755628]
[1734552287148,2.373,210.7,210.56,36.23755628]
[1734552287435,0.24808059,210.77,210.57,0.71186481]
[1734552287637,21.359576,210.73,210.57,0.71186481]
[1734552287837,0.24808059,210.8,210.62,36.23755628]
[1734552288037,0.85882696,210.79,210.64,36.23755628]
[1734552288252,0.85882696,210.79,210.68,36.23755628]
[1734552288453,0.85882696,210.79,210.7,36.23755628]
[1734552288654,0.85882696,210.79,210.71,0.71147407]
[1734552288855,0.85882696,210.79,210.78,36.23755628]
[1734552289045,0.85882696,210.79,210.76,36.23755628]
[1734552289238,0.85882696,210.79,210.77,0.71125077]
[1734552289547,0.85882696,210.79,210.69,0.71133485]
[1734552289931,20.162372,210.78,210.63,0.71167079]
[1734552290154,0.85882696,210.79,210.63,0.71167079]
[1734552290534,1.89782,210.78,210.56,36.23755628]
[1734552290736,23.776884,210.67,210.51,0.71193025]
[1734552290959,20.0,210.6,210.51,0.71193025]
[1734552291145,20.0,210.6,210.47,0.71223695]
[1734552291333,23.776884,210.67,210.5,36.23755628]
[1734552291539,20.0,210.72,210.56,36.23755628]
[1734552291849,1.1861,210.76,210.58,36.23755628]
[1734552292156,23.776884,210.75,210.59,0.71185264]
[1734552292565,28.3848275,210.76,210.6,36.23755628]
[1734552292748,28.3848275,210.76,210.62,36.23755628]
[1734552292946,28.3848275,210.76,210.63,0.71159295]
[1734552293459,28.3848275,210.76,210.64,36.23755628]
[1734552293634,28.3848275,210.76,210.66,36.23755628]
[1734552293837,28.3848275,210.76,210.67,0.71154719]
[1734552294032,28.3848275,210.77,210.73,36.23755628]
[1734552294248,28.3848275,210.77,210.74,0.71135284]
[1734552294754,28.3848275,210.77,210.67,36.23755628]
[1734552295074,1.43418059,210.76,210.56,36.23755628]
[1734552295246,1.1861,210.76,210.57,0.71198903]
[1734552295453,0.24808059,210.75,210.57,0.71198903]
[1734552295840,20.0,210.72,210.57,0.71198903]
[1734552296034,23.776884,210.67,210.57,0.71198903]
[1734552296236,20.0,210.64,210.51,0.71209274]
[1734552296437,23.776884,210.63,210.51,0.71209274]
[1734552297183,20.0,210.74,210.51,0.71209274]
[1734552297469,1.1861,210.76,210.58,36.23755628]
[1734552297679,1.1861,210.76,210.59,0.71175039]
[1734552297842,1.1861,210.76,210.6,36.23755628]
[1734552298035,0.24808059,210.75,210.53,0.71177487]
[1734552298235,20.0,210.72,210.53,0.71177487]
[1734552298460,0.24808059,210.71,210.53,0.71177487]
[1734552298840,0.8900663,210.71,210.5,26.94933115]
[1734552299051,23.776884,210.66,210.51,0.71199343]
[1734552299660,20.0,210.65,210.51,0.71199343]
[1734552299862,0.88994566,210.74,210.56,36.23755628]
[1734552300060,0.88979116,210.73,210.57,0.71183293]
[1734552300657,0.88979116,210.73,210.58,0.7120953]
[1734552300873,0.88979116,210.73,210.5,36.23755628]
[1734552301078,20.0,210.72,210.51,0.71209082]
[1734552301259,0.8902233,210.71,210.51,0.71209082]
[1734552301448,1.1862,210.74,210.56,36.23755628]
[1734552301777,28.3848275,210.71,210.57,0.71180469]
[1734552301983,1.1865,210.69,210.51,0.71204376]
[1734552302159,0.89032561,210.68,210.46,0.71226049]
[1734552302474,0.89032561,210.68,210.47,0.86880383]
[1734552302689,0.89032561,210.68,210.48,0.71227823]
[1734552302898,1.1865,210.69,210.5,36.23755628]
[1734552303073,1.1863,210.73,210.56,36.23755628]
[1734552303249,28.3848275,210.74,210.58,36.23755628]
[1734552303578,0.88970735,210.73,210.59,0.71176588]
[1734552303781,0.88970735,210.73,210.54,0.71199082]
[1734552303985,0.88970735,210.73,210.5,0.71215083]
[1734552304293,1.1864,210.72,210.55,36.23755628]
[1734552304466,1.1862,210.76,210.58,36.23755628]
[1734552304660,1.1862,210.76,210.59,0.71184713]
[1734552304865,0.8896145,210.75,210.59,0.71184713]
[1734552305251,4.44845303,210.76,210.55,0.71196242]
[1734552305480,1.1862,210.76,210.58,36.23755628]
[1734552305658,1.1859,210.8,210.66,36.23755628]
[1734552305859,11.06599691,210.83,210.67,0.7114976]
[1734552306157,11.06599691,210.83,210.47,26.94231475]
[1734552306158,3.5574,210.82,210.57,0.71161236]
[1734552306353,0.88985752,210.81,210.52,0.71188601]
[1734552306557,7.7913,210.8,210.47,39.9394798]
[1734552306799,13.1881,210.78,210.48,0.7121497]
[1734552306956,237.45569924,210.74,210.47,0.86880383]
[1734552307157,20.0,210.69,210.47,0.86880383]
[1734552307355,23.776884,210.62,210.42,33.44900578]
[1734552307561,20.0,210.55,210.42,32.7366]
[1734552307757,0.89064046,210.54,210.42,32.7366]
[1734552307993,20.0,210.5,210.42,32.7366]
[1734552308176,1.1875,210.52,210.42,32.7366]
[1734552308371,20.0,210.48,210.42,32.7366]
[1734552308571,23.776884,210.47,210.42,32.7366]
[1734552308769,1.1875,210.52,210.42,32.7366]
[1734552308966,23.776884,210.5,210.42,32.7366]
[1734552309173,23.776884,210.51,210.42,32.7366]
[1734552309385,20.0,210.48,210.42,32.7366]
[1734552309610,1.1875,210.52,210.42,32.7366]
[1734552309808,20.0,210.48,210.42,32.7366]
[1734552309979,20.0,210.43,210.42,13.0252]
[1734552310180,1.188,210.43,210.42,0.0001]
[1734552310919,0.89109033,210.56,210.42,0.0001]
[1734552310920,23.776884,210.55,210.42,0.0001]
[1734552311079,0.89085309,210.54,210.42,0.0001]
[1734552311604,23.776884,210.53,210.42,0.0001]
[1734552311781,23.776884,210.51,210.42,0.0001]
[1734552311986,20.89110885,210.5,210.42,0.0001]
[1734552312193,3.26520354,210.59,210.42,0.0001]
[1734552312385,0.89090354,210.59,210.42,0.0001]
[1734552312711,7.6318,210.63,210.46,36.23755628]
[1734552312885,0.8903311,210.7,210.5,36.23755628]
[1734552313084,0.8903311,210.7,210.52,36.23755628]
[1734552313389,0.8903311,210.7,210.53,0.71211113]
[1734552313588,0.8903311,210.7,210.5,36.23755628]
[1734552313789,0.8903311,210.7,210.52,36.23755628]
[1734552314097,0.8903311,210.7,210.53,0.71205622]
[1734552314881,13.092,210.71,210.56,36.23755628]
[1734552315119,0.88991351,210.79,210.62,36.23755628]
[1734552315320,0.88991351,210.79,210.63,0.71176783]
[1734552315482,1.1861,210.78,210.63,0.71176783]
[1734552315680,0.88980984,210.77,210.63,0.71176783]
[1734552315935,1.1861,210.78,210.63,0.71176783]
[1734552316083,1.1858,210.82,210.66,36.23755628]
[1734552316426,18.970549,210.85,210.7,36.23755628]
[1734552316631,0.88925047,210.89,210.75,20.0]
[1734552316827,7.7785,210.94,210.77,20.0]
[1734552317133,12.5405,210.92,210.85,20.0]
[1734552317426,0.88884857,211.0,210.86,0.71107886]
[1734552317611,12.5405,210.99,210.86,0.71107886]
[1734552317816,13.42921956,210.99,210.86,0.71107886]
[1734552318015,13.42921956,210.99,210.79,36.23755628]
[1734552318211,13.42921956,210.99,210.78,20.0]
[1734552318425,1.1849,210.98,210.79,36.23755628]
[1734552318618,0.88887477,210.97,210.68,36.23755628]
[1734552318911,0.88887477,210.97,210.6,36.94903239]
[1734552318912,12.6855,210.94,210.6,36.94903239]
[1734552319218,28.43,210.92,210.6,0.71147611]
[1734552319423,6.99734246,210.91,210.6,36.23755628]
[1734552319608,20.88983287,210.91,210.64,36.23755628]
[1734552319807,23.776884,210.86,210.65,0.7116464]
[1734552320001,23.776884,210.82,210.65,0.7116464]
[1734552320224,0.88974077,210.81,210.66,0.71179262]
[1734552320520,7.0941798,210.92,210.73,36.23755628]
[1734552320845,7.0941798,210.92,210.79,36.23755628]
[1734552321051,7.98316987,210.96,210.81,36.23755628]
[1734552321261,7.0941798,210.96,210.82,0.71108298]
[1734552321754,0.88887785,210.98,210.82,20.71108298]
[1734552321948,12.5405,210.99,210.83,36.23755628]
[1734552322126,0.85809532,210.98,210.85,36.23755628]
[1734552322440,0.85809532,210.98,210.68,59.7520616]
[1734552322441,0.85809532,210.98,210.8,36.23755628]
[1734552322632,0.88872528,210.97,210.78,2.90896967]
[1734552322836,0.88872528,210.97,210.76,36.23755628]
[1734552323129,0.88872528,210.97,210.74,36.23755628]
[1734552323334,0.88872528,210.97,210.68,36.23755628]
[1734552323554,20.0,210.96,210.66,36.23755628]
[1734552323746,23.776884,210.94,210.67,2.90730582]
[1734552323953,20.0,210.85,210.6,36.23755628]
[1734552324144,23.776884,210.83,210.66,36.23755628]
[1734552324331,23.776884,210.81,210.66,36.23755628]
[1734552324522,0.88948364,210.88,210.66,36.23755628]
[1734552324725,20.0,210.84,210.64,36.23755628]
[1734552324954,23.776884,210.82,210.68,36.23755628]
[1734552325150,23.776884,210.8,210.64,36.23755628]
[1734552325348,20.0,210.89,210.66,36.23755628]
[1734552325531,23.776884,210.83,210.64,36.23755628]
[1734552325725,23.776884,210.81,210.62,36.23755628]
[1734552325953,23.776884,210.73,210.54,36.23755628]
[1734552326157,0.89003171,210.72,210.56,36.23755628]
[1734552326342,23.776884,210.79,210.6,36.23755628]
[1734552326541,20.0,210.8,210.62,36.23755628]
[1734552326840,23.776884,210.78,210.63,0.86814386]
[1734552327046,20.0,210.89,210.64,36.23755628]
[1734552327254,20.0,210.84,210.63,0.86814386]
[1734552327548,0.88972274,210.83,210.64,36.23755628]
[1734552327752,0.88944233,210.91,210.65,0.86806144]
[1734552328347,29.31944233,210.91,210.65,0.86806144]
[1734552328535,28.43,210.86,210.65,6.144e-05]
[1734552328733,28.43,210.83,210.49,36.23755628]
[1734552328963,23.776884,210.78,210.55,36.23755628]
[1734552329140,0.88975255,210.81,210.59,36.23755628]
[1734552329347,20.0,210.81,210.63,36.23755628]
[1734552329666,0.88967258,210.8,210.61,36.23755628]
[1734552329959,0.88960452,210.83,210.62,0.86818508]
[1734552330336,3.5574,210.82,210.54,36.23755628]
[1734552330671,4.44724746,210.82,210.61,36.23755628]
[1734552330855,2.07564746,210.82,210.61,36.23755628]
[1734552331154,7.9945,210.84,210.65,36.23755628]
[1734552331359,2.07509349,210.83,210.63,36.23755628]
[1734552331557,2.07509349,210.83,210.59,36.23755628]
[1734552331558,4.44659349,210.83,210.59,36.23755628]
[1734552331782,7.9945,210.84,210.65,36.23755628]
[1734552332063,7.8666,210.95,210.72,36.23755628]
[1734552332353,1.1853,210.91,210.68,36.23755628]
[1734552332554,0.88939297,210.9,210.64,36.23755628]
[1734552332740,0.88939297,210.9,210.62,36.23755628]
[1734552333062,28.43,210.89,210.56,36.23755628]
[1734552333261,48.43,210.86,210.54,39.086148]
[1734552333450,36.3412,210.81,210.5,36.23755628]
[1734552333648,48.43,210.78,210.46,36.23755628]
[1734552333843,20.0,210.72,210.45,2.85286332]
[1734552334041,20.0,210.63,210.42,36.23765628]
[1734552334242,20.0,210.58,210.42,0.0001]
[1734552334445,20.0,210.51,210.42,0.0001]
[1734552334652,24.66760699,210.5,210.42,0.0001]
[1734552334843,20.0,210.47,210.42,0.0001]
[1734552335154,24.6678075,210.46,210.42,0.0001]
[1734552335765,20.0,210.43,210.38,4.0]
[1734552335952,0.89114174,210.42,210.38,4.0]
[1734552336135,23.776884,210.44,210.38,4.0]
[1734552336334,0.89118834,210.43,210.38,4.0]
[1734552336531,23.776884,210.44,210.38,4.0]
[1734552336762,23.776884,210.42,210.38,4.0]
[1734552336965,23.776884,210.4,210.38,4.0]
[1734552337262,0.89124186,210.41,210.38,4.0]
[1734552337574,1.188,210.43,210.38,4.0]
[1734552337948,2.3755,210.48,210.38,4.0]
[1734552337949,1.1877,210.48,210.38,4.0]
[1734552338339,0.89088039,210.51,210.38,4.0]
[1734552338534,3.5628,210.5,210.38,4.0]
[1734552338735,0.89112955,210.49,210.38,4.0]
[1734552338941,1.1876,210.5,210.38,4.0]
[1734552339242,1.1874,210.55,210.38,4.0]
[1734552339443,1.1875,210.51,210.38,4.0]
[1734552339941,0.89073295,210.61,210.44,20.0]
[1734552340146,0.85882696,210.6,210.43,36.23755628]
[1734552340343,0.89041465,210.59,210.44,20.0]
[1734552340541,0.85882696,210.6,210.44,20.0]
[1734552340836,2.07750795,210.59,210.44,20.0]
[1734552341059,2.07750795,210.59,210.39,36.23755628]
[1734552341241,2.07750795,210.59,210.42,20.0]
[1734552341568,2.07750795,210.59,210.43,36.23755628]
[1734552341569,1.1871,210.59,210.43,36.23755628]
[1734552341867,1.1868,210.64,210.47,36.23755628]
[1734552342064,33.53579011,210.84,210.38,4.0]
[1734552342065,1.1866,210.69,210.54,20.0]
[1734552342363,12.2573,210.73,210.58,20.0]
[1734552342664,0.88983616,210.72,210.51,36.23755628]
[1734552342864,2.93506312,210.72,210.56,20.0]
[1734552343245,1.74866312,210.72,210.56,20.0]
[1734552343445,0.85882696,210.72,210.6,20.0]
[1734552343645,0.85882696,210.72,210.58,20.0]
[1734552343955,0.85882696,210.72,210.6,20.0]
[1734552344156,0.85882696,210.72,210.67,20.0]
[1734552344367,0.85882696,210.72,210.69,20.0]
[1734552344543,1.1856,210.86,210.69,56.23755628]
[1734552344748,0.85882696,210.86,210.74,20.0]
[1734552344945,0.85882696,210.86,210.67,36.23755628]
[1734552345153,0.85882696,210.86,210.7,20.0]
[1734552345667,1.1853,210.91,210.64,20.0]
[1734552345668,0.88934087,210.85,210.64,20.0]
[1734552345877,0.88944455,210.9,210.61,36.23755628]
[1734552346045,0.88965768,210.89,210.55,36.23755628]
[1734552346254,20.0,210.82,210.51,36.23755628]
[1734552346481,20.0,210.77,210.52,2.81304513]
[1734552346646,0.89020939,210.76,210.52,2.81304513]
[1734552346848,0.89020939,210.76,210.47,36.23755628]
[1734552347169,0.89020939,210.76,210.41,16.0452]
[1734552347170,23.776884,210.71,210.49,36.23755628]
[1734552347382,20.0,210.77,210.53,36.23755628]
[1734552347383,23.776884,210.69,210.53,36.23755628]
[1734552347552,23.776884,210.69,210.55,36.23755628]
[1734552347753,23.776884,210.69,210.53,36.23755628]
[1734552347960,23.776884,210.69,210.55,36.23755628]
[1734552348188,23.776884,210.69,210.5,2.81589235]
[1734552348189,23.776884,210.69,210.53,36.23755628]
[1734552348392,0.88977827,210.89,210.57,36.23755628]
[1734552348549,1.1857,210.83,210.6,20.0]
[1734552348744,1.1857,210.83,210.64,20.0]
[1734552348950,2.07549414,210.79,210.64,20.0]
[1734552349174,1.186,210.79,210.61,20.0]
[1734552349378,2.07559896,210.79,210.62,20.0]
[1734552349579,1.1857,210.84,210.63,36.23755628]
[1734552349790,2.07516477,210.84,210.66,20.0]
[1734552350091,0.88937851,210.79,210.59,36.23755628]
[1734552350382,0.88984439,210.83,210.6,20.0]
[1734552350750,1.1858,210.82,210.62,20.0]
[1734552351048,0.88971224,210.81,210.62,20.0]
[1734552351259,0.88971224,210.81,210.58,20.0]
[1734552351879,23.776884,210.8,210.58,20.0]
[1734552352073,23.776884,210.76,210.57,2.8211539]
[1734552352258,20.0,210.71,210.49,36.23755628]
[1734552352464,35.958284,210.69,210.47,36.23755628]
[1734552352666,24.963584,210.67,210.47,36.23755628]
[1734552352970,23.776884,210.65,210.47,36.23755628]
[1734552353173,23.776884,210.65,210.47,39.14462856]
[1734552353377,23.776884,210.63,210.47,2.90707228]
[1734552353602,23.776884,210.61,210.5,36.23755628]
[1734552354174,7.5546,210.68,210.52,36.23755628]
[1734552354348,2.07673688,210.67,210.48,36.23755628]
[1734552354871,1.1866,210.67,210.5,36.23755628]
[1734552355178,7.5546,210.68,210.52,36.23755628]
[1734552355572,8.33519612,210.68,210.55,20.0]
[1734552355775,0.8901412,210.67,210.5,36.23755628]
[1734552355954,7.5546,210.68,210.57,20.0]
[1734552356362,12.1814,210.69,210.57,20.0]
[1734552356564,0.8900506,210.68,210.5,36.23755628]
[1734552356887,2.3733,210.67,210.46,39.0927776]
[1734552357072,0.89034472,210.66,210.42,36.23755628]
[1734552357578,20.0,210.62,210.44,39.08953703]
[1734552357779,23.776884,210.6,210.48,36.23755628]
[1734552358079,23.776884,210.6,210.46,36.23755628]
[1734552358581,12.1814,210.69,210.52,36.23755628]
[1734552358876,0.89015054,210.68,210.48,36.23755628]
[1734552359080,4.44995054,210.68,210.48,36.23755628]
[1734552359678,2.07675054,210.68,210.52,36.23755628]
[1734552359887,12.1814,210.69,210.51,20.0]
[1734552359888,12.1814,210.69,210.56,36.23755628]
[1734552360054,0.88995445,210.68,210.54,36.23755628]
[1734552360261,0.88995445,210.68,210.55,20.0]
[1734552360474,12.1814,210.69,210.57,20.0]
[1734552360778,1.1861,210.77,210.65,20.0]
[1734552360975,2.3713,210.86,210.69,20.0]
[1734552361181,0.88944065,210.85,210.68,36.23755628]
[1734552361354,1.1858,210.82,210.66,36.23755628]
[1734552361555,0.88959697,210.81,210.6,36.23755628]
[1734552361871,0.88959697,210.81,210.56,36.23755628]
[1734552362066,0.88959697,210.81,210.52,36.23755628]
[1734552362391,0.88959697,210.81,210.48,36.23755628]
[1734552362392,30.0,210.69,210.48,36.23755628]
[1734552362701,3.5604,210.65,210.44,36.23755628]
[1734552362866,23.776884,210.63,210.44,36.23755628]
[1734552363185,23.776884,210.53,210.43,2.90820868]
[1734552363409,20.0,210.52,210.4,36.23755628]
[1734552363587,23.776884,210.47,210.38,6.80847587]
[1734552363762,23.776884,210.47,210.38,4.0]
[1734552363953,20.0,210.44,210.38,4.0]
[1734552364277,23.776884,210.43,210.38,4.0]
[1734552364465,23.776884,210.39,210.38,4.0]
[1734552364658,20.0,210.5,210.38,4.0]
[1734552364859,20.0,210.44,210.3,0.5778719]
[1734552365064,23.776884,210.42,210.3,0.5778719]
[1734552365382,23.776884,210.4,210.3,0.5778719]
[1734552365611,20.0,210.4,210.3,0.5778719]
[1734552365909,20.0,210.38,210.3,0.5778719]
[1734552366179,24.66828473,210.37,210.3,0.5778719]
[1734552366391,20.0,210.34,210.3,0.5778719]
[1734552366555,23.776884,210.32,210.3,7.19e-05]
[1734552366879,0.89154657,210.31,210.3,7.19e-05]
[1734552367055,1.1886,210.33,210.3,7.19e-05]
[1734552367560,0.89149856,210.37,210.3,7.19e-05]
[1734552367776,0.89140536,210.37,210.3,7.19e-05]
[1734552367982,1.1883,210.38,210.3,7.19e-05]
[1734552369200,0.89142397,210.42,210.3,7.19e-05]
[1734552369361,13.1333,210.43,210.33,20.0]
[1734552369558,12.2706,210.52,210.34,60.01444028]
[1734552369755,12.2706,210.52,210.39,20.0]
[1734552369959,1.1872,210.58,210.42,23.776884]
[1734552370182,1.1872,210.58,210.3,4.1642719]
[1734552370183,0.89062901,210.57,210.39,23.776884]
[1734552370487,0.89062901,210.57,210.3,7.19e-05]
[1734552370488,0.89062901,210.57,210.33,23.776884]
[1734552370684,0.89062901,210.57,210.31,23.776884]
[1734552370900,0.89062901,210.57,210.3,36.23762818]
[1734552370901,0.89062901,210.57,210.37,20.0]
[1734552371056,0.89062901,210.57,210.42,23.776884]
[1734552371394,1.1872,210.58,210.46,60.01444028]
[1734552371683,2.3737,210.64,210.49,23.776884]
[1734552371684,1.1869,210.63,210.49,23.776884]
[1734552371862,0.89046161,210.69,210.54,56.23755628]
[1734552372070,0.89046161,210.69,210.54,36.23755628]
[1734552372272,12.3079,210.71,210.54,36.23755628]
[1734552372469,12.3079,210.71,210.46,11.8787]
[1734552372470,0.88994925,210.7,210.53,23.776884]
[1734552372682,2.07644925,210.7,210.51,23.776884]
[1734552372885,2.07644925,210.7,210.49,23.776884]
[1734552373092,4.44944925,210.7,210.51,23.776884]
[1734552373301,2.07644925,210.7,210.54,56.23755628]
[1734552373506,0.88994925,210.7,210.6,23.776884]
[1734552373804,1.1862,210.75,210.62,36.23755628]
[1734552374004,0.88992054,210.79,210.67,20.0]
[1734552374168,1.186,210.8,210.7,36.23755628]
[1734552374369,0.5778,210.83,210.69,20.0]
[1734552374616,0.5778,210.83,210.72,36.23755628]
[1734552374764,0.5778,210.83,210.64,36.23755628]
[1734552374963,0.5778,210.83,210.65,23.776884]
[1734552375189,0.5778,210.83,210.66,36.23755628]
[1734552375390,1.1858,210.82,210.67,23.776884]
[1734552375594,1.7636,210.83,210.68,36.23755628]
[1734552375896,0.88935953,210.82,210.44,4.1642]
[1734552376187,19.21000236,210.81,210.5,36.23755628]
[1734552376395,0.8900363,210.8,210.48,36.23755628]
[1734552376578,20.0,210.77,210.5,36.23755628]
[1734552376775,0.89021182,210.76,210.54,36.23755628]
[1734552376995,0.89021182,210.76,210.52,36.23755628]
[1734552377400,1.1862,210.75,210.56,36.23755628]
[1734552377571,0.88993465,210.74,210.5,36.23755628]
[1734552377775,20.0,210.7,210.48,36.23755628]
[1734552377992,20.0,210.7,210.54,36.23755628]
[1734552378290,0.88993964,210.8,210.62,36.23755628]
[1734552378489,2.07583964,210.8,210.64,36.23755628]
[1734552378789,0.5778,210.83,210.66,36.23755628]
[1734552378992,0.5778,210.83,210.67,23.776884]
[1734552379320,1.1859,210.8,210.64,36.23755628]
[1734552379513,0.88952621,210.79,210.65,23.776884]
[1734552379715,0.889586,210.78,210.61,23.776884]
[1734552380026,14.0219,210.81,210.63,36.23755628]
[1734552380309,0.5778,210.83,210.71,36.23755628]
[1734552380472,0.5778,210.83,210.72,23.776884]
[1734552380885,1.7635,210.83,210.72,23.776884]
[1734552381310,0.5778,210.83,210.63,36.23755628]
[1734552381500,2.07533275,210.82,210.57,36.23755628]
[1734552381832,27.6347,210.8,210.53,36.23755628]
[1734552382023,0.89002527,210.79,210.49,36.23755628]
[1734552382233,20.0,210.75,210.35,4.1642]
[1734552382512,20.0,210.7,210.43,36.23755628]
[1734552382674,0.89034296,210.69,210.45,36.23755628]
[1734552382879,0.89034296,210.69,210.47,36.23755628]
[1734552383319,3.5598,210.68,210.43,39.098638]
[1734552383503,0.8904067,210.67,210.45,36.23755628]
[1734552383685,0.8904067,210.67,210.47,36.23755628]
[1734552384095,1.1864,210.73,210.56,36.23755628]
[1734552384308,1.1861,210.76,210.6,36.23755628]
[1734552384486,0.88982814,210.75,210.54,36.23755628]
[1734552384682,0.88982814,210.75,210.56,36.23755628]
[1734552384901,0.88982814,210.75,210.5,36.23755628]
[1734552385103,0.88982814,210.75,210.46,36.23755628]
[1734552385285,0.88982814,210.75,210.44,36.23755628]
[1734552385486,1.1862,210.74,210.46,36.23755628]
[1734552385701,20.89038846,210.73,210.44,36.23755628]
[1734552386044,20.0,210.69,210.46,36.23755628]
[1734552386191,20.89014012,210.71,210.54,36.23755628]
[1734552386392,20.89014012,210.71,210.5,36.23755628]
[1734552386699,20.0,210.7,210.39,36.23755628]
[1734552386891,20.0,210.68,210.45,36.23755628]
[1734552387089,0.89034153,210.67,210.47,36.23755628]
[1734552387526,1.1867,210.66,210.45,36.23755628]
[1734552387695,0.89033865,210.65,210.49,36.23755628]
[1734552388031,0.89008773,210.77,210.55,36.23755628]
[1734552388233,0.88975385,210.89,210.61,36.23755628]
[1734552388539,0.88960693,210.77,210.57,36.23755628]
[1734552388751,14.13002125,210.94,210.57,36.23755628]
[1734552388752,0.88983827,210.76,210.57,36.23755628]
[1734552388955,0.88983827,210.76,210.53,56.23755628]
[1734552389157,0.88983827,210.76,210.47,36.23755628]
[1734552389450,20.0,210.72,210.41,36.23755628]
[1734552389611,2.07683924,210.71,210.41,36.23755628]
[1734552389818,23.776884,210.7,210.42,2.22636672]
[1734552390028,8.0081,210.61,210.42,2.22636672]
[1734552390349,8.0081,210.61,210.34,2.22636672]
[1734552390350,20.0,210.58,210.34,2.22636672]
[1734552390551,0.89101134,210.57,210.34,2.22636672]
[1734552390915,0.89101134,210.57,210.31,36.23755628]
[1734552391255,20.0,210.49,210.28,140.0]
[1734552391451,0.89119232,210.48,210.28,140.0]
[1734552391614,1.1878,210.47,210.28,140.0]
[1734552391816,0.89139406,210.46,210.28,140.0]
[1734552392426,20.0,210.42,210.28,140.0]
[1734552392625,0.89165526,210.41,210.28,140.0]
[1734552392826,23.776884,210.4,210.28,140.0]
[1734552393028,20.0,210.37,210.28,129.178]
[1734552393234,0.89169164,210.36,210.28,117.2301]
[1734552393531,0.89169164,210.36,210.28,105.9281]
[1734552393734,0.89169164,210.36,210.28,105.4281]
[1734552394535,13.189,210.35,210.28,105.4281]
[1734552394754,20.0,210.32,210.28,105.4281]
[1734552395036,0.89173902,210.31,210.28,75.4282]
[1734552395264,0.89173902,210.31,210.16,0.28551]
[1734552397715,0.89177625,210.34,210.16,36.52306628]
[1734552397916,0.89177625,210.34,210.14,140.0]
[1734552398116,13.84171896,210.44,210.16,36.23755628]
[1734552398357,13.84171896,210.44,210.19,23.776884]
[1734552398527,13.84171896,210.44,210.23,23.776884]
[1734552398956,13.84171896,210.44,210.25,23.776884]
[1734552399261,13.84171896,210.44,210.21,23.776884]
[1734552399558,13.84171896,210.44,210.19,23.776884]
[1734552399732,0.89171896,210.44,210.24,36.23755628]
[1734552399914,0.89142483,210.51,210.29,43.776884]
[1734552400115,0.89142483,210.51,210.3,36.36304628]
[1734552400548,0.89142483,210.51,210.33,23.776884]
[1734552400755,0.89142483,210.51,210.38,23.776884]
[1734552400929,0.89078709,210.63,210.39,36.23755628]
[1734552401237,0.89078709,210.63,210.4,0.12549]
[1734552401565,6.37400236,210.62,210.35,23.776884]
[1734552401720,0.890932,210.61,210.33,23.776884]
[1734552401926,6.37400236,210.6,210.31,23.776884]
[1734552402116,0.89096731,210.59,210.37,23.902374]
[1734552402311,0.89075202,210.62,210.39,23.776884]
[1734552402539,0.89075202,210.62,210.38,36.23755628]
[1734552402540,0.89075202,210.62,210.44,0.12549]
[1734552402733,0.89046978,210.63,210.46,36.23755628]
[1734552402968,0.89031702,210.72,210.49,0.12549]
[1734552403141,0.89031702,210.72,210.54,36.23755628]
[1734552403340,0.89031702,210.72,210.58,36.23755628]